bitfinex/quotes_ETHUSD_20250730
["timestamp","ask_amount","ask_price","bid_price","bid_amount"]
[1753891838804,0.02008423,3793.5,3792.6,0.4796]
[1753891838967,5.49373145,3793.6,3793.1,0.132]
[1753891839697,5.49373145,3793.6,3791.7,0.4796]
[1753891839698,3.31834748,3793.2,3791.7,0.4796]
[1753891839900,5.49373145,3793.6,3791.1,0.041]
[1753891839901,3.132,3792.6,3791.2,0.4796]
[1753891840100,5.59959223,3791.9,3791.6,0.132]
[1753891840306,0.132,3792.1,3791.5,0.132]
[1753891840466,4.061,3792.0,3791.5,0.132]
[1753891840804,6.05229223,3791.9,3791.5,0.132]
[1753891840976,1.17661345,3791.8,3791.3,0.132]
[1753891841177,0.02008423,3791.7,3791.2,0.132]
[1753891841378,0.6943,3791.6,3791.2,0.132]
[1753891841584,0.6943,3791.6,3791.1,0.041]
[1753891841885,5.469,3791.5,3791.1,0.041]
[1753891842092,4.8843,3791.5,3791.2,0.4796]
[1753891842292,4.8843,3791.5,3791.3,0.132]
[1753891842662,4.8843,3791.5,3791.3,0.6116]
[1753891843105,4.8843,3791.5,3791.1,0.041]
[1753891843106,6.29389223,3791.4,3791.1,0.041]
[1753891843282,5.37273,3791.5,3791.1,0.041]
[1753891843479,4.8843,3791.5,3791.1,0.041]
[1753891843807,5.337,3791.5,3791.1,0.041]
[1753891845119,5.337,3791.5,3791.2,0.4796]
[1753891845120,4.8843,3791.5,3791.2,0.4796]
[1753891845271,4.8843,3791.5,3791.3,0.6116]
[1753891845477,0.4527,3791.9,3791.4,0.4796]
[1753891845678,4.062,3791.8,3791.3,0.132]
[1753891845917,0.7984,3792.1,3791.4,0.4796]
[1753891845918,4.062,3791.7,3791.4,0.4796]
[1753891846121,4.062,3791.7,3791.5,0.4796]
[1753891846281,4.062,3791.7,3791.6,0.132]
[1753891846616,4.062,3791.7,3791.6,0.6116]
[1753891846819,4.062,3791.7,3791.6,1.41001968]
[1753891846985,4.062,3792.5,3791.6,1.41001968]
[1753891847184,4.062,3792.5,3791.7,0.4643]
[1753891847409,4.062,3792.5,3792.3,0.132]
[1753891848045,4.062,3792.5,3792.3,0.5963]
[1753891848326,4.062,3792.5,3792.3,0.132]
[1753891848734,4.5014,3792.5,3792.3,0.132]
[1753891848894,0.4394,3792.4,3792.3,0.132]
[1753891849094,0.681,3792.4,3792.3,0.132]
[1753891849626,0.4394,3792.4,3792.3,0.132]
[1753891850547,4.062,3792.5,3792.3,0.132]
[1753891851906,4.062,3792.5,3792.3,0.5963]
[1753891852447,4.062,3792.5,3792.3,0.133]
[1753891852622,4.062,3792.5,3792.4,0.4643]
[1753891853845,4.062,3792.5,3792.3,0.133]
[1753891854681,4.23448423,3792.4,3792.3,0.001]
[1753891854819,4.47608423,3792.4,3792.3,0.001]
[1753891855150,5.006,3792.4,3792.3,0.001]
[1753891855348,4.7644,3792.4,3792.3,0.001]
[1753891856006,5.006,3792.4,3792.3,0.001]
[1753891856206,8.2764,3792.4,3792.3,0.001]
[1753891857222,9.068,3792.4,3792.3,0.001]
[1753891858948,0.8305,3792.2,3791.6,0.132]
[1753891859110,0.8267,3791.6,3791.4,0.132]
[1753891859312,4.062,3791.5,3791.4,0.132]
[1753891859520,4.062,3791.5,3791.1,3.041]
[1753891859721,0.4394,3791.4,3791.1,3.041]
[1753891859926,0.4394,3791.3,3791.1,3.041]
[1753891860128,4.062,3791.2,3791.1,3.041]
[1753891860863,4.062,3791.2,3791.1,4.47453]
[1753891861343,0.8305,3791.9,3791.1,4.47453]
[1753891861543,3.0,3791.7,3791.1,4.01023]
[1753891861738,3.0,3791.7,3791.4,0.132]
[1753891861942,3.0,3791.7,3791.1,3.173]
[1753891861943,0.4394,3791.6,3791.1,3.173]
[1753891862260,4.5014,3791.5,3791.1,3.6373]
[1753891862464,4.062,3791.5,3791.1,3.6373]
[1753891863162,4.062,3791.5,3791.2,0.4643]
[1753891863362,4.062,3791.5,3791.3,0.4643]
[1753891864364,4.062,3791.5,3791.1,3.173]
[1753891864666,0.8305,3791.9,3791.4,0.4643]
[1753891864970,3.0,3791.7,3791.5,0.4643]
[1753891865263,3.0,3791.7,3791.6,0.4643]
[1753891865669,0.8305,3791.9,3791.6,0.4643]
[1753891865966,4.062,3791.7,3791.6,0.4643]
[1753891866171,4.062,3791.7,3791.4,0.132]
[1753891866367,4.96480694,3791.7,3791.4,0.132]
[1753891866681,0.7775,3791.5,3791.1,3.041]
[1753891866963,5.59959223,3791.3,3791.1,3.041]
[1753891867179,0.4394,3791.2,3791.1,3.041]
[1753891867375,5.59959223,3791.3,3791.1,3.041]
[1753891867927,6.03899223,3791.3,3791.1,3.041]
[1753891868342,5.59959223,3791.3,3791.1,3.041]
[1753891868532,5.59959223,3791.3,3791.1,3.5053]
[1753891869310,0.7775,3791.5,3791.2,0.4643]
[1753891869571,7.062,3791.4,3791.3,0.4643]
[1753891869772,7.062,3791.4,3791.1,3.173]
[1753891870190,0.4394,3791.3,3791.1,3.041]
[1753891870474,4.062,3791.2,3791.1,3.041]
[1753891871085,4.062,3791.2,3791.1,3.5053]
[1753891871597,4.062,3791.2,3791.1,4.1108]
[1753891872090,3.0,3791.4,3791.1,4.1108]
[1753891872304,4.062,3791.2,3791.1,3.6465]
[1753891872886,0.132,3791.7,3791.1,4.47545]
[1753891873177,4.062,3791.6,3791.2,0.4643]
[1753891873380,4.062,3791.5,3791.3,0.4735]
[1753891873598,4.062,3791.5,3791.4,0.132]
[1753891873891,4.062,3791.5,3791.4,0.5963]
[1753891874599,4.062,3791.5,3791.4,1.592615]
[1753891874742,0.8286,3792.6,3791.4,1.592615]
[1753891874948,4.30705905,3792.5,3792.0,0.132]
[1753891875255,3.24505905,3792.4,3792.1,0.4643]
[1753891875470,0.24505905,3792.3,3792.2,0.4643]
[1753891875697,4.30705905,3792.3,3792.2,0.4643]
[1753891876580,0.24505905,3792.3,3792.2,0.4643]
[1753891876811,0.24505905,3792.3,3792.0,0.132]
[1753891876812,7.062,3792.3,3792.0,0.132]
[1753891877096,4.062,3792.3,3792.1,0.4784]
[1753891877262,4.062,3792.3,3792.0,0.132]
[1753891877463,4.062,3792.3,3792.1,0.4784]
[1753891877664,4.062,3792.3,3792.2,0.4784]
[1753891877959,4.062,3792.3,3792.0,0.132]
[1753891878170,4.062,3792.3,3792.0,0.6104]
[1753891878700,4.062,3792.3,3792.1,0.4784]
[1753891878905,4.062,3792.3,3792.0,0.5985]
[1753891879217,4.062,3792.3,3792.2,0.4784]
[1753891880202,4.062,3792.3,3792.0,0.132]
[1753891880526,4.062,3792.3,3792.0,0.6104]
[1753891881514,4.062,3792.3,3791.5,0.132]
[1753891881515,0.55,3792.0,3791.5,0.132]
[1753891881695,0.55,3791.5,3791.1,3.041]
[1753891882011,4.6468,3791.4,3791.1,3.041]
[1753891882210,4.194,3791.4,3791.1,3.041]
[1753891882518,4.194,3791.4,3791.2,0.4784]
[1753891882519,4.062,3791.4,3791.2,0.4784]
[1753891882675,4.062,3791.4,3791.1,3.041]
[1753891883117,4.062,3791.4,3791.1,3.5194]
[1753891883332,4.062,3791.4,3791.1,3.041]
[1753891884187,4.062,3791.4,3791.1,3.5194]
[1753891884887,0.4528,3791.3,3791.1,3.041]
[1753891885116,5.59959223,3791.2,3791.1,3.041]
[1753891885423,8.47739988,3791.2,3791.1,3.041]
[1753891885639,8.85099988,3791.2,3791.1,3.041]
[1753891885859,11.85099988,3791.2,3791.1,3.041]
[1753891886237,15.91199988,3791.2,3791.1,3.041]
[1753891886398,15.91199988,3791.2,3790.7,0.001]
[1753891886399,34.3107,3791.1,3790.7,0.001]
[1753891886711,1.3107,3790.7,3790.5,0.001]
[1753891886898,13.57337646,3790.6,3790.5,0.001]
[1753891887100,13.55329223,3790.6,3790.5,0.001]
[1753891887295,3.55,3790.5,3789.6,0.132]
[1753891887539,0.682,3790.2,3789.4,0.132]
[1753891887844,8.68863265,3790.2,3789.4,0.132]
[1753891888001,9.12134842,3790.2,3789.4,0.132]
[1753891888769,9.12134842,3790.2,3789.5,0.4784]
[1753891888967,3.132,3790.2,3789.5,0.4784]
[1753891889115,7.062,3790.2,3789.8,0.6104]
[1753891889314,8.0648,3790.2,3789.8,0.132]
[1753891889549,8.3064,3790.2,3789.4,0.4784]
[1753891889752,8.3064,3790.2,3789.4,0.6104]
[1753891890235,8.3064,3790.2,3789.4,0.4784]
[1753891890440,8.3064,3790.2,3789.1,0.5065]
[1753891890441,9.1057,3790.2,3789.3,0.132]
[1753891890640,10.02947,3790.2,3789.3,0.132]
[1753891891247,10.02947,3790.2,3789.1,0.5184]
[1753891892923,10.1643917,3790.2,3789.1,0.5184]
[1753891893949,0.7747,3790.0,3789.1,0.5184]
[1753891894169,0.7747,3789.2,3789.1,0.04]
[1753891894462,4.9687,3789.2,3789.1,0.04]
[1753891895143,4.98878423,3789.2,3789.1,0.04]
[1753891895345,9.09290188,3789.2,3789.1,0.04]
[1753891895552,9.07281765,3789.2,3789.1,0.04]
[1753891896956,7.9687,3789.2,3789.1,0.04]
[1753891897335,7.9687,3789.2,3789.1,0.5184]
[1753891897871,7.9687,3789.2,3789.1,0.04]
[1753891898696,3.9067,3789.2,3789.1,0.04]
[1753891898893,7.9697,3789.2,3789.1,0.04]
[1753891899043,7.9697,3789.2,3789.1,0.5184]
[1753891899244,7.195,3789.2,3789.1,0.5184]
[1753891899478,7.195,3789.2,3789.1,0.9849]
[1753891899843,7.195,3789.2,3789.1,0.5184]
[1753891900212,7.195,3789.2,3789.1,0.9849]
[1753891900213,4.063,3789.2,3789.1,0.9849]
[1753891900346,4.063,3789.2,3789.1,0.5184]
[1753891900692,8.2767,3789.2,3789.1,0.04]
[1753891900896,8.4087,3789.2,3789.1,0.04]
[1753891901892,8.4087,3789.2,3789.1,0.5184]
[1753891902043,8.0024,3789.2,3789.1,0.04]
[1753891903244,8.5524,3789.2,3789.1,0.04]
[1753891903443,3.55,3788.9,3788.7,0.001]
[1753891903644,0.55,3788.3,3787.6,0.4784]
[1753891903873,13.66470646,3788.2,3787.6,0.4784]
[1753891904178,14.09742223,3788.2,3787.6,0.4784]
[1753891904482,0.55,3788.0,3787.1,0.5184]
[1753891904783,3.55,3787.8,3787.1,0.5184]
[1753891904966,4.08408423,3787.7,3787.1,0.5184]
[1753891905290,0.55,3787.4,3787.1,0.04]
[1753891905581,4.064,3787.3,3787.2,0.4784]
[1753891905888,4.064,3787.9,3787.3,1.2895]
[1753891906185,4.064,3787.9,3787.4,0.9449]
[1753891906354,4.064,3787.9,3787.5,0.9449]
[1753891906559,4.064,3787.9,3787.6,0.9449]
[1753891906880,4.064,3787.9,3787.7,0.8986]
[1753891907081,4.064,3787.9,3787.3,0.823]
[1753891907254,4.064,3787.9,3787.8,0.8986]
[1753891908049,4.064,3787.9,3787.8,1.718]
[1753891908799,0.4719,3789.3,3787.8,1.718]
[1753891908800,4.063,3788.5,3787.9,0.8194]
[1753891908985,4.064,3788.5,3788.0,0.8986]
[1753891909296,0.7628,3789.5,3788.1,0.8986]
[1753891909495,4.30767295,3789.4,3788.2,0.8986]
[1753891909794,3.7628,3789.5,3788.1,0.8194]
[1753891909795,3.7628,3789.5,3788.3,0.8986]
[1753891910099,3.0,3789.2,3788.4,0.8986]
[1753891910299,3.0,3789.2,3788.1,0.8194]
[1753891910495,3.0,3789.2,3788.5,0.8986]
[1753891910709,3.0,3789.2,3788.6,1.718]
[1753891910911,3.0,3789.2,3788.6,1.2709]
[1753891911414,0.24431964,3789.1,3788.7,0.4515]
[1753891911574,4.064,3789.0,3788.8,0.4515]
[1753891912110,4.064,3789.0,3788.9,0.4515]
[1753891912315,4.30859833,3789.0,3788.6,0.8194]
[1753891912513,4.30859833,3789.0,3786.2,2.64110197]
[1753891912514,0.49198423,3788.9,3788.0,1.2665]
[1753891912679,0.49198423,3788.9,3788.2,0.4515]
[1753891913018,0.244567,3788.8,3788.2,0.4515]
[1753891913225,4.064,3788.7,3788.2,0.4515]
[1753891913531,4.064,3788.7,3788.0,1.2665]
[1753891913532,0.244567,3788.6,3788.4,0.132]
[1753891913922,0.244567,3788.6,3788.4,0.5835]
[1753891914233,4.064,3788.7,3788.5,0.4515]
[1753891915828,0.4719,3788.6,3788.1,0.132]
[1753891916032,4.68868598,3788.7,3788.2,0.4515]
[1753891916231,4.68868598,3788.7,3788.1,0.5791]
[1753891916434,4.68868598,3788.7,3788.3,0.4015]
[1753891917136,4.68868598,3788.7,3788.1,0.132]
[1753891917746,5.16058598,3788.7,3788.1,0.132]
[1753891917952,3.6239186,3788.6,3788.1,0.132]
[1753891918483,3.6239186,3788.6,3788.2,0.4515]
[1753891918646,3.6239186,3788.6,3788.1,0.5791]
[1753891918849,3.0,3788.6,3788.3,0.4515]
[1753891919036,3.0,3788.6,3788.4,0.4471]
[1753891919382,3.0,3788.6,3788.5,0.8986]
[1753891919984,4.064,3788.7,3788.5,0.8486]
[1753891920337,4.064,3788.7,3788.6,0.4515]
[1753891920655,3.002,3789.1,3788.6,0.5835]
[1753891920656,4.064,3789.0,3788.6,0.5835]
[1753891920830,3.002,3789.1,3788.9,0.132]
[1753891921168,3.002,3789.1,3789.0,0.4515]
[1753891922383,3.002,3789.1,3789.0,0.8986]
[1753891922582,0.002,3789.1,3789.0,0.8986]
[1753891923742,0.002,3789.1,3789.0,0.4515]
[1753891924071,0.002,3789.1,3789.0,1.7115]
[1753891924284,0.002,3789.1,3789.0,1.89585]
[1753891926370,0.002,3789.1,3789.0,4.53506879]
[1753891927774,0.002,3789.1,3789.0,4.56146097]
[1753891928180,1e-08,3789.1,3789.0,8.11146097]
[1753891928337,1e-08,3789.1,3789.0,7.53506879]
[1753891928537,1e-08,3789.1,3789.0,11.59806879]
[1753891928731,1e-08,3789.1,3789.0,7.53506879]
[1753891928935,1e-08,3789.1,3789.0,11.59806879]
[1753891929960,1e-08,3789.1,3789.0,12.14806879]
[1753891930947,1e-08,3789.1,3789.0,8.08506879]
[1753891931153,1e-08,3789.1,3789.0,12.14806879]
[1753891931690,1e-08,3789.1,3789.0,11.59806879]
[1753891933440,1e-08,3789.1,3789.0,11.59706879]
[1753891938909,1e-08,3789.1,3789.0,7.53506879]
[1753891939124,1e-08,3789.1,3789.0,8.05925]
[1753891939410,1e-08,3789.1,3789.0,10.69846879]
[1753891939592,1e-08,3789.1,3789.0,11.16126879]
[1753891939904,0.43360001,3789.1,3788.9,0.132]
[1753891940201,0.2916,3789.0,3788.9,0.132]
[1753891940602,0.7252,3789.0,3788.9,0.132]
[1753891941920,1.56178423,3789.0,3788.5,0.001]
[1753891942224,1.01337842,3788.9,3788.5,0.001]
[1753891942572,0.7252,3788.8,3788.5,0.001]
[1753891943208,0.28817842,3788.9,3788.5,0.001]
[1753891943411,0.7252,3788.7,3788.5,0.001]
[1753891943774,0.28817842,3788.9,3788.5,0.001]
[1753891944112,0.7252,3788.6,3788.5,0.001]
[1753891944423,2.62503784,3788.6,3788.5,0.001]
[1753891945605,1.5417,3788.6,3788.5,0.001]
[1753891946878,1.2501,3788.6,3788.5,0.001]
[1753891947076,1.2501,3788.6,3788.5,0.133]
[1753891947903,0.91897842,3788.9,3788.5,0.133]
[1753891948214,0.4336,3788.8,3788.5,0.133]
[1753891948451,0.92290207,3788.8,3788.5,0.133]
[1753891948617,0.46921784,3788.8,3788.5,0.133]
[1753891948953,0.4336,3788.7,3788.5,0.133]
[1753891949152,0.4336,3788.8,3788.5,0.133]
[1753891949321,0.4336,3788.7,3788.5,0.133]
[1753891949948,0.4336,3788.6,3788.5,0.133]
[1753891950617,0.13200001,3789.1,3788.5,0.5958]
[1753891950837,1e-08,3789.1,3788.6,0.4628]
[1753891951039,1e-08,3789.1,3789.0,0.132]
[1753891951418,1e-08,3789.1,3789.0,0.5948]
[1753891952960,1e-08,3789.1,3789.0,0.132]
[1753891953563,1e-08,3789.1,3789.0,0.5948]
[1753891953917,1e-08,3789.1,3789.0,0.132]
[1753891955055,1e-08,3789.1,3789.0,1.053]
[1753891955266,1e-08,3789.1,3789.0,1.8725]
[1753891955430,1e-08,3789.1,3789.0,2.32632049]
[1753891955833,1e-08,3789.1,3789.0,1.8725]
[1753891956162,1e-08,3789.1,3789.0,4.51171879]
[1753891956465,1e-08,3789.1,3789.0,4.53811097]
[1753891956630,1e-08,3789.1,3789.0,4.51171879]
[1753891957144,1e-08,3789.1,3789.0,1.4143]
[1753891958727,1e-08,3789.1,3789.0,5.36910404]
[1753891958927,1e-08,3789.1,3789.0,2.72988525]
[1753891959961,1e-08,3789.1,3789.0,2.27168525]
[1753891960324,1e-08,3789.1,3789.0,5.4763]
[1753891961027,1e-08,3789.1,3789.0,1.8725]
[1753891961233,1e-08,3789.1,3789.0,5.9345]
[1753891962371,1e-08,3789.1,3789.0,8.57371879]
[1753891963642,1e-08,3789.1,3789.0,5.0145]
[1753891963856,1e-08,3789.1,3789.0,5.4773]
[1753891964052,1e-08,3789.1,3789.0,6.74716079]
[1753891964451,1e-08,3789.1,3789.0,6.28896079]
[1753891964645,1e-08,3789.1,3789.0,0.133]
[1753891964874,1e-08,3789.1,3789.0,4.195]
[1753891965047,1e-08,3789.1,3789.0,4.6578]
[1753891965381,1e-08,3789.1,3789.0,4.195]
[1753891965971,0.43360001,3789.1,3789.0,4.195]
[1753891966570,1e-08,3789.1,3789.0,0.133]
[1753891967111,1e-08,3789.1,3789.0,0.6043]
[1753891967288,1e-08,3789.1,3789.0,2.04249647]
[1753891967979,1e-08,3789.1,3789.0,4.68171526]
[1753891968187,1e-08,3789.1,3789.0,5.50160744]
[1753891968397,1e-08,3789.1,3789.0,5.47521526]
[1753891968893,1e-08,3789.1,3789.0,8.47521526]
[1753891969101,1e-08,3789.1,3789.0,9.02521526]
[1753891972681,1e-08,3789.5,3789.4,3.1889402]
[1753891972884,1e-08,3789.5,3789.4,14.64513076]
[1753891973215,1e-08,3789.5,3789.4,18.66574136]
[1753891974550,1e-08,3789.5,3789.4,18.8003056]
[1753891978032,1e-08,3789.9,3789.8,7.00376167]
[1753891978231,1e-08,3789.9,3789.8,11.83512955]
[1753891978435,1e-08,3789.9,3789.8,12.75012955]
[1753891978942,1e-08,3790.9,3790.8,7.0030656]
[1753891979244,1e-08,3790.9,3790.8,16.79465783]
[1753891979479,1e-08,3790.9,3790.8,17.70965783]
[1753891979640,1e-08,3790.9,3790.8,18.7041543]
[1753891980152,1e-08,3790.9,3790.8,18.90038254]
[1753891980836,1e-08,3790.9,3790.8,12.85709031]
[1753891981363,1e-08,3790.9,3790.8,13.30079031]
[1753891982480,1e-08,3790.9,3790.8,12.38579031]
[1753891982633,1e-08,3790.9,3790.8,13.30079031]
[1753891983664,1e-08,3790.9,3790.8,18.90038254]
[1753891984179,1e-08,3790.9,3790.8,14.84038254]
[1753891984384,1e-08,3790.9,3790.8,18.89938254]
[1753891984725,1e-08,3790.9,3790.8,14.39668254]
[1753891984931,1e-08,3790.9,3790.8,18.89938254]
[1753891985238,1e-08,3790.9,3790.8,8.79709031]
[1753891985432,1e-08,3790.9,3790.8,12.85609031]
[1753891986261,0.00200001,3790.9,3790.8,18.89938254]
[1753891986766,0.00200001,3790.9,3790.8,18.45568254]
[1753891987675,1e-08,3790.9,3790.8,18.89938254]
[1753891989473,1e-08,3791.3,3791.2,6.99618727]
[1753891989693,1e-08,3791.3,3791.2,7.9339962]
[1753891989869,1e-08,3791.3,3791.2,12.5962962]
[1753891990463,1e-08,3791.3,3791.2,13.0399962]
[1753891991692,1e-08,3791.3,3791.2,8.9809962]
[1753891991893,1e-08,3791.3,3791.2,13.0389962]
[1753891992454,0.42800001,3791.3,3791.2,10.7654962]
[1753891992656,1.48050001,3791.3,3791.2,4.19]
[1753891992880,1.48050001,3791.3,3791.2,6.82768727]
[1753891993056,0.71960001,3791.3,3791.2,6.82768727]
[1753891993252,0.42800001,3791.3,3791.2,6.82768727]
[1753891993488,1e-08,3791.3,3791.2,6.82768727]
[1753891993693,1e-08,3791.3,3791.2,8.32423296]
[1753891993888,1e-08,3791.3,3791.2,8.79553296]
[1753891994188,1e-08,3791.3,3791.2,12.55223296]
[1753891994390,1e-08,3791.3,3791.2,12.99593296]
[1753891995368,0.2936,3792.7,3791.2,12.99593296]
[1753891995369,0.002,3792.7,3792.6,2.6367136]
[1753891995694,0.002,3792.7,3791.8,3.0]
[1753891995695,0.428,3792.6,3791.9,3.55]
[1753891995859,0.428,3792.6,3792.5,2.63678312]
[1753891996055,0.428,3792.6,3792.5,6.82678312]
[1753891996494,0.7196,3792.6,3792.5,6.82678312]
[1753891997160,0.7196,3792.6,3792.5,4.19]
[1753891998093,0.428,3792.6,3792.5,6.82678312]
[1753891999293,0.002,3792.7,3792.5,6.82678312]
[1753891999294,0.002,3792.7,3792.6,2.6367136]
[1753891999673,0.002,3792.7,3792.6,2.66308073]
[1753891999902,0.002,3792.7,3792.6,2.6367136]
[1753892000475,0.002,3792.7,3792.6,6.6937136]
[1753892000933,0.4348,3792.7,3792.6,4.057]
[1753892001364,0.4348,3792.7,3792.5,0.70773431]
[1753892001570,1.221,3792.7,3792.6,4.057]
[1753892002780,1.5126,3792.7,3792.6,4.057]
[1753892003607,1.221,3792.7,3792.6,6.6937136]
[1753892003919,0.002,3792.7,3792.6,6.6937136]
[1753892004072,0.002,3792.7,3792.6,8.13837013]
[1753892004403,0.4348,3792.7,3792.6,5.00325653]
[1753892004606,0.4348,3792.7,3792.6,0.94625653]
[1753892004807,0.4348,3792.7,3792.6,6.6937136]
[1753892005014,0.002,3792.7,3792.6,4.057]
[1753892005320,0.002,3792.7,3792.6,6.6937136]
[1753892005717,0.002,3792.7,3792.5,2.76876189]
[1753892006018,0.002,3792.7,3792.6,6.6937136]
[1753892006220,0.002,3792.7,3792.6,7.63997632]
[1753892006711,0.002,3792.7,3792.6,5.00326272]
[1753892006913,0.002,3792.7,3792.5,0.132]
[1753892006914,0.4348,3792.7,3792.5,0.132]
[1753892007123,0.4328,3792.6,3792.5,0.132]
[1753892007296,1.5002,3792.6,3792.5,4.189]
[1753892008585,1.2086,3792.6,3792.5,0.132]
[1753892008789,1.2086,3792.6,3792.5,4.189]
[1753892008972,0.002,3792.7,3792.5,4.6079]
[1753892009171,0.002,3792.7,3792.6,2.6367136]
[1753892009410,0.002,3792.7,3792.6,3.16148073]
[1753892009611,0.002,3792.7,3792.6,3.1351136]
[1753892010468,0.7264,3792.7,3792.6,4.056]
[1753892010673,1.5108,3792.7,3792.6,4.056]
[1753892010904,1.2192,3792.7,3792.6,4.056]
[1753892011277,0.002,3792.7,3792.6,8.4372783]
[1753892011882,0.002,3792.7,3792.6,1.2461647]
[1753892012085,0.8105,3792.6,3792.5,0.132]
[1753892012308,1.2433,3792.6,3792.5,4.188]
[1753892012609,1.2433,3792.6,3792.5,6.82478312]
[1753892013310,0.8105,3792.6,3792.5,6.82478312]
[1753892014011,0.002,3792.7,3792.6,2.6367136]
[1753892014213,0.002,3792.7,3792.6,3.63270327]
[1753892014389,0.002,3792.7,3792.6,4.13110327]
[1753892015175,0.002,3792.7,3792.6,4.57490327]
[1753892015576,0.002,3792.7,3792.6,4.7074704]
[1753892015782,0.002,3792.7,3792.6,5.1512704]
[1753892015999,0.002,3792.7,3792.6,14.4885955]
[1753892016514,0.03720598,3793.9,3793.8,2.63587959]
[1753892016718,0.002,3794.1,3794.0,2.63574064]
[1753892016881,0.002,3794.5,3794.3,2.63553224]
[1753892017225,0.002,3794.5,3794.3,7.66008756]
[1753892017416,0.002,3794.5,3794.3,7.76573224]
[1753892017580,0.002,3794.5,3794.3,9.08238505]
[1753892017913,0.002,3794.5,3794.3,7.94674258]
[1753892018707,0.002,3794.5,3794.3,3.89074258]
[1753892019039,0.002,3794.5,3794.3,5.31021034]
[1753892019222,0.002,3794.5,3794.3,4.187]
[1753892020135,0.002,3794.5,3794.3,6.82253224]
[1753892020510,0.002,3794.5,3794.3,4.187]
[1753892021127,0.002,3794.5,3794.3,6.82253224]
[1753892021937,0.002,3794.5,3794.3,7.32093224]
[1753892022118,0.002,3794.5,3794.3,8.38033735]
[1753892023435,0.8237,3795.2,3794.4,2.63546278]
[1753892023650,0.7672,3795.5,3794.8,2.63517435]
[1753892023850,0.7672,3795.5,3795.2,2.63485774]
[1753892024024,0.7672,3795.5,3795.4,0.132]
[1753892024553,1.2,3795.5,3795.4,0.132]
[1753892025048,0.7672,3795.5,3795.4,0.132]
[1753892025350,1.2029,3795.8,3795.4,0.132]
[1753892025512,1.2029,3795.8,3795.5,4.055]
[1753892025714,0.04,3795.9,3795.5,4.055]
[1753892025910,0.04,3795.9,3795.5,4.08134698]
[1753892026117,0.04,3795.9,3795.5,4.57974698]
[1753892026361,0.04,3795.9,3795.5,4.5534]
[1753892026563,0.04,3795.9,3795.5,7.21444596]
[1753892026867,0.04,3795.9,3795.5,8.26568376]
[1753892027026,0.04,3795.9,3795.5,8.70018376]
[1753892029540,0.04,3795.9,3795.5,8.69918376]
[1753892029925,0.04,3795.9,3795.5,11.69918376]
[1753892031189,0.04,3795.9,3795.5,12.24918376]
[1753892031331,0.04,3795.9,3795.5,13.05508376]
[1753892033454,1e-08,3795.6,3795.5,13.05508376]
[1753892034660,0.002,3796.0,3795.9,3.18442134]
[1753892034886,0.002,3796.0,3795.9,13.80125778]
[1753892035083,0.04,3796.9,3796.8,2.63379688]
[1753892035393,0.04,3796.9,3796.8,6.68579688]
[1753892035547,0.04,3796.9,3796.8,6.81779688]
[1753892035748,0.04,3796.9,3796.8,8.23146453]
[1753892037402,0.04,3796.9,3796.8,11.43355891]
[1753892037752,0.04,3796.9,3796.8,12.41805891]
[1753892040088,1e-08,3796.9,3796.8,12.41805891]
[1753892040418,0.002,3798.1,3797.8,2.63310337]
[1753892040553,0.002,3798.1,3797.8,7.99176332]
[1753892040758,0.002,3798.1,3797.8,12.00043229]
[1753892041199,0.002,3798.1,3797.8,12.55043229]
[1753892041818,0.002,3798.1,3797.8,7.51493229]
[1753892042096,0.002,3798.1,3797.8,11.56593229]
[1753892042326,0.002,3798.1,3797.8,12.11593229]
[1753892042512,0.002,3798.1,3797.8,12.55043229]
[1753892042994,0.5058,3798.9,3798.8,2.63241023]
[1753892042995,0.04,3798.9,3798.8,2.63241023]
[1753892043180,0.04,3798.9,3798.8,6.68241023]
[1753892043398,0.7974,3798.9,3798.8,0.132]
[1753892043601,1.5931,3798.9,3798.8,4.182]
[1753892047811,1.3015,3798.9,3798.8,4.182]
[1753892049001,0.04,3798.9,3798.8,7.49586386]
[1753892049203,0.04,3798.9,3798.8,8.39886386]
[1753892049374,0.04,3798.9,3798.8,11.39886386]
[1753892049878,0.04,3798.9,3798.8,10.96436386]
[1753892050716,0.04,3798.9,3798.8,10.49486386]
[1753892051217,0.04,3798.9,3798.8,10.96336386]
[1753892051716,0.042,3798.9,3798.8,10.49486386]
[1753892052312,0.042,3798.9,3798.8,0.132]
[1753892052513,1.3123,3798.9,3798.8,4.18]
[1753892052715,1.6039,3798.9,3798.8,4.18]
[1753892054206,1.3123,3798.9,3798.8,4.18]
[1753892055518,1.6039,3798.9,3798.8,4.18]
[1753892056019,1.3123,3798.9,3798.8,4.18]
[1753892056334,0.7652,3800.4,3799.4,2.63199452]
[1753892056485,0.7652,3800.4,3799.6,3.0]
[1753892056684,0.7652,3800.4,3800.3,0.1312]
[1753892056916,1.2037,3800.4,3800.3,4.1802]
[1753892057420,0.7652,3800.4,3800.3,4.1802]
[1753892057598,1.2037,3800.4,3800.3,4.1802]
[1753892058403,1.2037,3800.4,3800.3,0.1312]